Workbook

Sheet Instrucciones
B2: INVENTARIO NACIONAL DE GASES DE EFECTO INVERNADERO
B3: Sector Desechos - Tratamiento y Eliminación de Aguas Residuales Domésticas
B5: INSTRUCCIONES
B7: ALCANCE
B8: La subcategoría de Tratamiento y eliminación de aguas residuales domésticas, involucra a todas las emisiones de gases de efecto invernadero que se generan por la descomposición de aguas residuales domésticas en condiciones anaeróbicas. Se contabilizan además las emisiones procedentes de las excretas humanas.
B11: El Tratamiento y eliminación de aguas residuales domésticas, comprende las siguientes fuentes: - Aguas residuales domésticas - Excretas humanas
B14: METODOLOGÍA DE CALCULO
B16: Directrices del IPCC para Inventarios Nacionales del IPCC - 1996 (GL 1996) en lo que respecta a aguas residuales
B17: Orientación del IPCC sobre las buenas prácticas y la gestión de la incertidumbre en los inventarios nacionales de Gases de Efecto Invernadero (OBP 2000)
B18: Sector: Desechos
F19: Para el cálculo de Emisiones GEI:
F24: Nivel 1: El método mas básico que es aplicado cuando se utiliza niveles de actividad disponibles y factores de emisión por defecto de las guías del IPCC.
F25: Nivel 2: Método intermedio de cálculo en términos de esfuerzo y sofisticación, en la mayoría de casos se basa en el uso de niveles de actividad disponible y factores de emisión mas detallados o específicos.
F27: Nivel 3: El método mas exigente en términos de complejidad y requerimientos de datos, usualmente implica el uso de modelos y ecuaciones complejas.
B30: ESTRUCTURA DE LA HOJA DE CALCULO
B32: Las hojas de cálculo, en este libro, están agrupadas por los siguientes colores:
B33: Color de hoja | C33: Descripción
C34: Caracterización de datos
C35: Información base de nivel de actividad
C36: Información procesada de nivel de actividad
C37: Propiedades, Factores de conversión y Factores de emisión de GEI
C38: Hojas de estimaciones de emisiones GEI por desechos
C39: Resultados GEI por desechos
B41: Los grupos de hojas se relacionan como se muestra en el diagrama:
B65: ABREVIATURAS
B67: GEI | C67: : Gases de Efecto Invernadero
B68: FE | C68: : Factor de Emisión
B69: INGEI | C69: : Inventario Nacional de Gases de Efecto Invernadero
B70: CH4 | C70: : Metano
B71: N2O | C71: : Oxido Nitroso
B72: CO2e | C72: : Dióxido de carbono equivalente

Sheet Características datos
B2: Caracterización de Datos - Sector Desechos (Residuos sólidos)
B3: Definición IPCC: se refiere a la definición -literal o abreviada- de las GL1996. En algunos casos la definición abreviada se acompaña de un comentario (columna G) con la definición literal
B4: Definición INGEI: se refiere a la definición de las GL1996, ajustada a la realidad o circunstancias del Perú. Este ajuste se identificó en el desarrollo del INGEI y mantiene el concepto general de la definición original en las GL1996
C5: No aplica o no se considera en este INGEI
B7: Categorización | F7: Fuente de emisión / captura | G7: Definición | H7: Nivel de actividad | I7: Unidad | J7: TIER/Nivel | K7: Fuente de información | L7: Uso de la información | M7: Gases de GEI generados por el nivel de actividad | N7: Comentarios | O7: Hojas relacionada
B8: 6 | F8: Desechos
C9: 6B | F9: Tratamiento de aguas residuales | G9: Definición IPCC: Metano y óxido nitroso generados por la descomposición de materia orgánica en las aguas.residuales. Definición INGEI: metano y óxido nitroso generados por la descomposición de materia orgánica en las aguas residuales industriales y domésticas .
D10: 6B2 | F10: Tratamiento y eliminación de aguas residuales domésticas | G10: Definición IPCC: Emisiones de metano que se generan en los tratamientos de aguas residuales y lodos procedentes de las viviendas y fuentes comerciales. Se consideran además las emisiones de oxido nitroso procedentes de las excretas humanas vertidas en ambientes acuáticos. Definición INGEI: Emisiones de metano generadas en los procesos de tratamiento de aguas residuales domésticas.
E11: 6B2a | F11: Aguas residuales domésticas | G11: Definición IPCC: Manejo de aguas residuales y lodo, de fuentes domésticas y comerciales (incluyendo residuos humanos), a través de la recolección y tratamiento de aguas residuales, letrinas o descarga en fuentes de agua. Definición INGEI: Emisiones de metano generadas en los procesos de tratamiento de aguas residuales domésticas, considerando los vertimientos al alcatarillado público. | H11: Población con sistema de alcantarillado | I11: número de personas en miles | J11: 1 | K11: Superintendencia Nacional de Servicios de Saneamiento (SUNASS) | L11: Sirven para determinar en su conjunto las emisiones de metano generadas por el tratamiento de las aguas residuales domésticas. | M11: CH4 | O11: InfoProc 6B2a
H12: Porcentaje de aguas residuales tratadas | I12: % | J12: 1 | K12: Superintendencia Nacional de Servicios de Saneamiento (SUNASS)
H13: Demanda Biológica de Oxígeno (DBO) | I13: Kg DBO/1000 pesonas∙año | J13: 1 | K13: Reglamento Nacional de Edificaciones – Norma OS.090: Plantas de Tratamiento de Aguas Residuales. (Debe hacerse un ajuste para llevarlo a las unidades requeridas). | O13: Prop. y Fact. de conversión
H14: Población del ámbito de la EPS | I14: número de personas en miles | J14: 1 | K14: Superintendencia Nacional de Servicios de Saneamiento (SUNASS) | L14: La población de ámbito de la EPS y el Porcentaje de cobertura de alcantarillado, son usados para estimar la Población con sistema de alcantarillado, en caso esta información no está disponible: Población con sistema de alcantarillado = Población de ámbito de la EPS x Porcentaje de cobertura de alcantarillado | O14: InfoBase 6B2a
H15: Porcentaje de cobertura de alcantarillado | I15: % | J15: 1 | K15: Superintendencia Nacional de Servicios de Saneamiento (SUNASS)
E16: 6B2b | F16: Excretas humanas | G16: Definición IPCC: Las emisiones de N2O de las excretas humanas, están directamente relacionadas al ciclo del nitrógeno en la Agricultura. Definición INGEI: se considera las emisiones indirectas de N2O por la ingesta de proteinas en la población. Estas emisiones no son consideradas en Agricultura y forman parte de las "Aguas residuales domésticas", que solo contabilizan CH4. | H16: Población nacional urbana | I16: Personas | K16: Instituto Nacional de Estadísticas e Informática (INEI) | L16: Sirve para determinar la cantidad de nitrógeno contenida en la orina humana | M16: N2O | O16: infoBase6B2b(población)
H17: Consumo de proteínas | I17: g/persona∙día | J17: 1 | K17: Organización de las Naciones Unidas para la Agricultura y la Alimentación (FAO) | O17: InfoBase 6B2b

Sheet InfoBase 6B2a
B2: Información Básica: Cobertura de tratamiento de aguas residuales
B4: DATOS DE LA INFORMACIÓN BASE
B5: Código | C5: 6B2a
B6: Subcodigo
B7: Información | C7: Nivel de actividad | D7: Cobertura de tratamiento de aguas residuales domésticas en poblaciones urbanas
C8: Documento | D8: Información envíada vía correo electrónico por Marissa Andrade (SUNASS)
C9: Título | D9: Coberturas de agua potable y alcantarillado
C10: Subtitulo
B11: Ubicación especifica | C11: Pagina | F11: Cuadro | I11: Anexo
B12: Vínculo
B13: Institución
J16: Relación de esta hoja, con otras:
B18: Código | C18: Región | D18: Empresa Prestadora de Servicio | E18: Tratamiento de aguas residuales | F18: Población ámbito EPS | G18: Población con alcantarillado
E19: 2005
B20: 1 | C20: Amazonas | D20: EMUSAP Amazonas | E20: 0 | F20: 22383.2051 | G20: 15752
B21: 2 | C21: Huánuco | D21: SEDA Huánuco S.A. | E21: 0 | F21: 208142.4836 | G21: 130787
B22: 3 | C22: Ucayali | D22: EMAPACOP S.A. | E22: 0 | F22: 198949.4429 | G22: 102105
B23: 4 | C23: Loreto | D23: EPS SEDALORETO S.A. | E23: 0 | F23: 431028.8791 | G23: 220743
B24: 5 | C24: Lima | D24: EMAPA Cañete S.A. | E24: 0.1752974183 | F24: 161388.2493 | G24: 81605
B25: 6 | C25: Puno | D25: EMSA Puno S.A. | E25: 0.9969960142 | F25: 156147.0401 | G25: 109166
B26: 7 | C26: Amazonas | D26: EPSSMU S.R.Ltda. | E26: 0 | F26: 29020.52793 | G26: 16356
B27: 8 | C27: Tumbes | D27: Aguas de Tumbes | E27: 0.2320200171 | F27: 171754.9776 | G27: 86841
B28: 9 | C28: Cerro de Pasco | D28: EMAPA Pasco S.A. | E28: 0 | F28: 76606.79092 | G28: 0
B29: 10 | C29: Ica | D29: EMAPISCO S.A. | E29: 0.927296186 | F29: 80234.94001 | G29: 60205
B30: 11 | C30: Cajamarca | D30: SEDACAJ S.A. | E30: 0.05723075528 | F30: 148495.4991 | G30: 118570
B31: 12 | C31: Tacna | D31: EPS TACNA S.A. | E31: 0.9521580676 | F31: 234944.6906 | G31: 215239.6
B32: 13 | C32: Ica | D32: EMAPAVIGS S.A.C. | E32: 0.8587794067 | F32: 35204.54962 | G32: 25930
B33: 14 | C33: Áncash | D33: SEDACHIMBOTE S.A. | E33: 0.595456609 | F33: 348665.9749 | G33: 290555
B34: 15 | C34: Ayacucho | D34: EPSASA | E34: 0.9744097801 | F34: 186907.322 | G34: 121237
B35: 16 | C35: San Martín | D35: EMAPA San Martín S.A. | E35: 0.03789905233 | F35: 175276.4013 | G35: 133035
B36: 17 | C36: Madre de Dios | D36: EMAPAT S.R.Ltda. | E36: 0 | F36: 52782.61559 | G36: 18118
B37: 18 | C37: Ica | D37: SEMAPACH S.A. | E37: 1 | F37: 162222.1063 | G37: 95562
B38: 19 | C38: Junín | D38: EPS Selva Central S.A. | E38: 0.2500800645 | F38: 107185.3474 | G38: 47901
B39: 20 | C39: San Martín | D39: EMAPA MOYOBAMBA S.R.LTDA. | E39: 0.3179612773 | F39: 53269.50488 | G39: 34636
B40: 21 | C40: Huancavelica | D40: EMAPA HUANCAVELICA S.A.C | E40: 0 | F40: 32289.28321 | G40: 20722
B41: 22 | C41: Moquegua | D41: EPS MOQUEGUA S.A. | E41: 0.8196977296 | F41: 45141.90487 | G41: 38462
B42: 23 | C42: Puno | D42: EMAPA Y S.R.L. | E42: 0 | F42: 12149.07551 | G42: 6487
B43: 24 | C43: Lima | D43: EMAPA HUARAL S.A. | E43: 0 | F43: 77248.15241 | G43: 48156
B44: 25 | C44: Lima | D44: EMAPA HUACHO S.A. | E44: 0 | F44: 107292.0318 | G44: 80291
B45: 26 | C45: Lima | D45: SEDAPAL S.A. | E45: 0.1217434295 | F45: 8220962.359 | G45: 6308331.07
B46: 27 | C46: Moquegua | D46: EPS ILO S.A. | E46: 0.8017038568 | F46: 61898.89255 | G46: 47026
B47: 28 | C47: La Libertad | D47: SEDALIB S.A. | E47: 0.9275540696 | F47: 827121.9017 | G47: 560000
B48: 29 | C48: Lambayeque | D48: EPSEL S.A. | E48: 0.8912986279 | F48: 790227.4414 | G48: 582065
B49: 30 | C49: San Martín | D49: SEDAPAR S.A. | E49: 0.1584858801 | F49: 941308.0536 | G49: 746481
B50: 31 | C50: Cusco | D50: SEDACUSCO S.A. | E50: 0.8506713374 | F50: 343618.795 | G50: 279729
B51: 32 | C51: Piura | D51: EPS GRAU S.A. | E51: 0.4268772175 | F51: 954579.5587 | G51: 606430
B52: 33 | C52: Áncash | D52: EPS CHAVIN S.A. | E52: 0 | F52: 106723.4997 | G52: 74040
B53: 34 | C53: Cusco | D53: EMAQ S.R.LTDA. | E53: 0 | F53: 26665.70189 | G53: 13129
B54: 35 | C54: Amazonas | D54: EMAPAB S.R.LTDA. | E54: 0 | F54: 25521.74763 | G54: 16689
B55: 36 | C55: Lima | D55: SEMAPA BARRANCA S.A. | E55: 0 | F55: 67709.76201 | G55: 55977
B56: 37 | C56: Ica | D56: EMAPICA S.A. | E56: 0.9822354686 | F56: 191105.3547 | G56: 126914
B57: 38 | C57: Cusco | D57: EMPSSAPAL S.A. | E57: 0 | F57: 52129.39148 | G57: 36634
B58: 39 | C58: Junín | D58: EPS SIERRA CENTRAL S.R.L. | E58: 0 | F58: 44271.9213 | G58: 27495
B59: 40 | C59: Puno | D59: EPS NOR PUNO S.A. | E59: 0 | F59: 23762.43729 | G59: 15438
B60: 41 | C60: Puno | D60: SEDAJULIACA S.A. | E60: 0.6261803714 | F60: 207124.9187 | G60: 147955
B61: 42 | C61: Junín | D61: EPS MANTARO S.A. | E61: 0.07423415951 | F61: 78660.68381 | G61: 39875
B62: 43 | C62: Apurímac | D62: EMUSAP ABANCAY S.A. | E62: 0 | F62: 45673.3614 | G62: 37885.41768
B63: 44 | C63: Apurímac | D63: EMSAP CHANKA S.R.L. | F63: 25783.36631 | G63: 12935
B64: 45 | C64: Cajamarca | D64: EPS MARAÑON S.R.L. | E64: 0.9764633046 | F64: 87106.93923 | G64: 24632
B65: 46 | C65: Junín | D65: SEDAM HUANCAYO S.A.C. | E65: 0 | F65: 347100.9959 | G65: 225822
B66: 47 | C66: Cusco | D66: EMSAPA CALCA S.R.L. | F66: 10054.48082 | G66: 9289
B67: 48 | C67: Puno | D67: EPS AGUAS DEL ALTIPLANO | F67: 19400.42908 | G67: 11146.28126
B68: 50 | C68: Junín | D68: EMSAPA YAULI S.RL.L. | F68: 31194.73683 | G68: 6100
B69: 51 | C69: Arequipa | D69: SEDAPAR S.R.L. (Rioja) | F69: 19573.86209
F70: =SUM(F20:F69) -> 16864011.59 | G70: =SUM(G20:G69) -> 12130479.37

Sheet InfoBase 6B2b (población)
B2: Información Básica: Población nacional según región
B4: DATOS DE LA INFORMACIÓN BASE
B5: Código | C5: 6B2b
B6: Subcodigo
B7: Información | C7: Nivel de actividad | D7: Población según región/provincia/distrito
C8: Documento | D8: -
C9: Título | D9: Poblaciónal 2005
C10: Subtitulo
B11: Ubicación especifica | C11: Pagina | F11: Cuadro | I11: Anexo
B12: Vínculo | C12: http://proyectos.inei.gob.pe/web/poblacion/#
C13: Visitado en mayo 2015
B14: Institución | C14: Instituto Nacional de Estadísticas e Informática
D18: Población total oficial del Perú: | E18: 27810540 | H18: Relación de esta hoja, con otras:

Sheet InfoBase 6B2b
B2: Consumo diario de proteínas
B4: DATOS DE LA INFORMACIÓN BASE
B5: Código | C5: 6 B 2
B6: Subcodigo
B7: Información | C7: Nivel de actividad | D7: Consumo de proteína per cápita
C8: Documento | D8: Perfil de País: Indicadores de Seguridad Alimentaria
C9: Título | D9: Suministro Alimentario para el Consumo Humano
C10: Subtitulo | D10: Consumo total de proteínas
B11: Ubicación especifica | C11: Pagina | D11: 1 | F11: Cuadro | I11: Anexo
B12: Vínculo | C12: http://www.fao.org/fileadmin/templates/ess/documents/food_security_statistics/country_profiles/esp/Peru_S.pdf
C13: Visitado en mayo 2015
B14: Institución | C14: ORGANIZACION DE LAS NACIONES UNIDAS PARA LA AGRICULTURA Y LA ALIMENTACION - FAO
B17: Porcentaje de proteínas | D17: 67 | E17: g/persona·día | G17: Relación de esta hoja, con otras:

Sheet InfoProc 6B2a
B2: Información Procesada: Población nacional según región (millares)
H3: Relación de esta hoja, con otras:
B5: Código | C5: Región | D5: Empresa Prestadora de Servicio | E5: Tratamiento de aguas residuales [%] | F5: Población con alcantarillado [miles]
B7: ='InfoBase 6B2a'!B20 -> 1 | C7: ='InfoBase 6B2a'!C20 -> Amazonas | D7: ='InfoBase 6B2a'!D20 -> EMUSAP Amazonas | E7: =VLOOKUP(D7,'InfoBase 6B2a'!$D$20:$G$69,2,FALSE) -> 0 | F7: =VLOOKUP(D7,'InfoBase 6B2a'!$D$20:$G$69,4,FALSE)/1000 -> 15.752
B8: ='InfoBase 6B2a'!B26 -> 7 | C8: ='InfoBase 6B2a'!C26 -> Amazonas | D8: ='InfoBase 6B2a'!D26 -> EPSSMU S.R.Ltda. | E8: =VLOOKUP(D8,'InfoBase 6B2a'!$D$20:$G$69,2,FALSE) -> 0 | F8: =VLOOKUP(D8,'InfoBase 6B2a'!$D$20:$G$69,4,FALSE)/1000 -> 16.356
B9: ='InfoBase 6B2a'!B54 -> 35 | C9: ='InfoBase 6B2a'!C54 -> Amazonas | D9: ='InfoBase 6B2a'!D54 -> EMAPAB S.R.LTDA. | E9: =VLOOKUP(D9,'InfoBase 6B2a'!$D$20:$G$69,2,FALSE) -> 0 | F9: =VLOOKUP(D9,'InfoBase 6B2a'!$D$20:$G$69,4,FALSE)/1000 -> 16.689
B10: ='InfoBase 6B2a'!B33 -> 14 | C10: ='InfoBase 6B2a'!C33 -> Áncash | D10: ='InfoBase 6B2a'!D33 -> SEDACHIMBOTE S.A. | E10: =VLOOKUP(D10,'InfoBase 6B2a'!$D$20:$G$69,2,FALSE) -> 0.595456609 | F10: =VLOOKUP(D10,'InfoBase 6B2a'!$D$20:$G$69,4,FALSE)/1000 -> 290.555
B11: ='InfoBase 6B2a'!B52 -> 33 | C11: ='InfoBase 6B2a'!C52 -> Áncash | D11: ='InfoBase 6B2a'!D52 -> EPS CHAVIN S.A. | E11: =VLOOKUP(D11,'InfoBase 6B2a'!$D$20:$G$69,2,FALSE) -> 0 | F11: =VLOOKUP(D11,'InfoBase 6B2a'!$D$20:$G$69,4,FALSE)/1000 -> 74.04
B12: ='InfoBase 6B2a'!B62 -> 43 | C12: ='InfoBase 6B2a'!C62 -> Apurímac | D12: ='InfoBase 6B2a'!D62 -> EMUSAP ABANCAY S.A. | E12: =VLOOKUP(D12,'InfoBase 6B2a'!$D$20:$G$69,2,FALSE) -> 0 | F12: =VLOOKUP(D12,'InfoBase 6B2a'!$D$20:$G$69,4,FALSE)/1000 -> 37.88541768
B13: ='InfoBase 6B2a'!B63 -> 44 | C13: ='InfoBase 6B2a'!C63 -> Apurímac | D13: ='InfoBase 6B2a'!D63 -> EMSAP CHANKA S.R.L. | E13: =VLOOKUP(D13,'InfoBase 6B2a'!$D$20:$G$69,2,FALSE) -> 0 | F13: =VLOOKUP(D13,'InfoBase 6B2a'!$D$20:$G$69,4,FALSE)/1000 -> 12.935
B14: ='InfoBase 6B2a'!B69 -> 51 | C14: ='InfoBase 6B2a'!C69 -> Arequipa | D14: ='InfoBase 6B2a'!D69 -> SEDAPAR S.R.L. (Rioja) | E14: =VLOOKUP(D14,'InfoBase 6B2a'!$D$20:$G$69,2,FALSE) -> 0 | F14: =VLOOKUP(D14,'InfoBase 6B2a'!$D$20:$G$69,4,FALSE)/1000 -> 0
B15: ='InfoBase 6B2a'!B34 -> 15 | C15: ='InfoBase 6B2a'!C34 -> Ayacucho | D15: ='InfoBase 6B2a'!D34 -> EPSASA | E15: =VLOOKUP(D15,'InfoBase 6B2a'!$D$20:$G$69,2,FALSE) -> 0.9744097801 | F15: =VLOOKUP(D15,'InfoBase 6B2a'!$D$20:$G$69,4,FALSE)/1000 -> 121.237
B16: ='InfoBase 6B2a'!B30 -> 11 | C16: ='InfoBase 6B2a'!C30 -> Cajamarca | D16: ='InfoBase 6B2a'!D30 -> SEDACAJ S.A. | E16: =VLOOKUP(D16,'InfoBase 6B2a'!$D$20:$G$69,2,FALSE) -> 0.05723075528 | F16: =VLOOKUP(D16,'InfoBase 6B2a'!$D$20:$G$69,4,FALSE)/1000 -> 118.57
B17: ='InfoBase 6B2a'!B64 -> 45 | C17: ='InfoBase 6B2a'!C64 -> Cajamarca | D17: ='InfoBase 6B2a'!D64 -> EPS MARAÑON S.R.L. | E17: =VLOOKUP(D17,'InfoBase 6B2a'!$D$20:$G$69,2,FALSE) -> 0.9764633046 | F17: =VLOOKUP(D17,'InfoBase 6B2a'!$D$20:$G$69,4,FALSE)/1000 -> 24.632
B18: ='InfoBase 6B2a'!B28 -> 9 | C18: ='InfoBase 6B2a'!C28 -> Cerro de Pasco | D18: ='InfoBase 6B2a'!D28 -> EMAPA Pasco S.A. | E18: =VLOOKUP(D18,'InfoBase 6B2a'!$D$20:$G$69,2,FALSE) -> 0 | F18: =VLOOKUP(D18,'InfoBase 6B2a'!$D$20:$G$69,4,FALSE)/1000 -> 0
B19: ='InfoBase 6B2a'!B50 -> 31 | C19: ='InfoBase 6B2a'!C50 -> Cusco | D19: ='InfoBase 6B2a'!D50 -> SEDACUSCO S.A. | E19: =VLOOKUP(D19,'InfoBase 6B2a'!$D$20:$G$69,2,FALSE) -> 0.8506713374 | F19: =VLOOKUP(D19,'InfoBase 6B2a'!$D$20:$G$69,4,FALSE)/1000 -> 279.729
B20: ='InfoBase 6B2a'!B53 -> 34 | C20: ='InfoBase 6B2a'!C53 -> Cusco | D20: ='InfoBase 6B2a'!D53 -> EMAQ S.R.LTDA. | E20: =VLOOKUP(D20,'InfoBase 6B2a'!$D$20:$G$69,2,FALSE) -> 0 | F20: =VLOOKUP(D20,'InfoBase 6B2a'!$D$20:$G$69,4,FALSE)/1000 -> 13.129
B21: ='InfoBase 6B2a'!B57 -> 38 | C21: ='InfoBase 6B2a'!C57 -> Cusco | D21: ='InfoBase 6B2a'!D57 -> EMPSSAPAL S.A. | E21: =VLOOKUP(D21,'InfoBase 6B2a'!$D$20:$G$69,2,FALSE) -> 0 | F21: =VLOOKUP(D21,'InfoBase 6B2a'!$D$20:$G$69,4,FALSE)/1000 -> 36.634
B22: ='InfoBase 6B2a'!B66 -> 47 | C22: ='InfoBase 6B2a'!C66 -> Cusco | D22: ='InfoBase 6B2a'!D66 -> EMSAPA CALCA S.R.L. | E22: =VLOOKUP(D22,'InfoBase 6B2a'!$D$20:$G$69,2,FALSE) -> 0 | F22: =VLOOKUP(D22,'InfoBase 6B2a'!$D$20:$G$69,4,FALSE)/1000 -> 9.289
B23: ='InfoBase 6B2a'!B40 -> 21 | C23: ='InfoBase 6B2a'!C40 -> Huancavelica | D23: ='InfoBase 6B2a'!D40 -> EMAPA HUANCAVELICA S.A.C | E23: =VLOOKUP(D23,'InfoBase 6B2a'!$D$20:$G$69,2,FALSE) -> 0 | F23: =VLOOKUP(D23,'InfoBase 6B2a'!$D$20:$G$69,4,FALSE)/1000 -> 20.722
B24: ='InfoBase 6B2a'!B21 -> 2 | C24: ='InfoBase 6B2a'!C21 -> Huánuco | D24: ='InfoBase 6B2a'!D21 -> SEDA Huánuco S.A. | E24: =VLOOKUP(D24,'InfoBase 6B2a'!$D$20:$G$69,2,FALSE) -> 0 | F24: =VLOOKUP(D24,'InfoBase 6B2a'!$D$20:$G$69,4,FALSE)/1000 -> 130.787
B25: ='InfoBase 6B2a'!B29 -> 10 | C25: ='InfoBase 6B2a'!C29 -> Ica | D25: ='InfoBase 6B2a'!D29 -> EMAPISCO S.A. | E25: =VLOOKUP(D25,'InfoBase 6B2a'!$D$20:$G$69,2,FALSE) -> 0.927296186 | F25: =VLOOKUP(D25,'InfoBase 6B2a'!$D$20:$G$69,4,FALSE)/1000 -> 60.205
B26: ='InfoBase 6B2a'!B32 -> 13 | C26: ='InfoBase 6B2a'!C32 -> Ica | D26: ='InfoBase 6B2a'!D32 -> EMAPAVIGS S.A.C. | E26: =VLOOKUP(D26,'InfoBase 6B2a'!$D$20:$G$69,2,FALSE) -> 0.8587794067 | F26: =VLOOKUP(D26,'InfoBase 6B2a'!$D$20:$G$69,4,FALSE)/1000 -> 25.93
B27: ='InfoBase 6B2a'!B37 -> 18 | C27: ='InfoBase 6B2a'!C37 -> Ica | D27: ='InfoBase 6B2a'!D37 -> SEMAPACH S.A. | E27: =VLOOKUP(D27,'InfoBase 6B2a'!$D$20:$G$69,2,FALSE) -> 1 | F27: =VLOOKUP(D27,'InfoBase 6B2a'!$D$20:$G$69,4,FALSE)/1000 -> 95.562
B28: ='InfoBase 6B2a'!B56 -> 37 | C28: ='InfoBase 6B2a'!C56 -> Ica | D28: ='InfoBase 6B2a'!D56 -> EMAPICA S.A. | E28: =VLOOKUP(D28,'InfoBase 6B2a'!$D$20:$G$69,2,FALSE) -> 0.9822354686 | F28: =VLOOKUP(D28,'InfoBase 6B2a'!$D$20:$G$69,4,FALSE)/1000 -> 126.914
B29: ='InfoBase 6B2a'!B38 -> 19 | C29: ='InfoBase 6B2a'!C38 -> Junín | D29: ='InfoBase 6B2a'!D38 -> EPS Selva Central S.A. | E29: =VLOOKUP(D29,'InfoBase 6B2a'!$D$20:$G$69,2,FALSE) -> 0.2500800645 | F29: =VLOOKUP(D29,'InfoBase 6B2a'!$D$20:$G$69,4,FALSE)/1000 -> 47.901
B30: ='InfoBase 6B2a'!B58 -> 39 | C30: ='InfoBase 6B2a'!C58 -> Junín | D30: ='InfoBase 6B2a'!D58 -> EPS SIERRA CENTRAL S.R.L. | E30: =VLOOKUP(D30,'InfoBase 6B2a'!$D$20:$G$69,2,FALSE) -> 0 | F30: =VLOOKUP(D30,'InfoBase 6B2a'!$D$20:$G$69,4,FALSE)/1000 -> 27.495
B31: ='InfoBase 6B2a'!B61 -> 42 | C31: ='InfoBase 6B2a'!C61 -> Junín | D31: ='InfoBase 6B2a'!D61 -> EPS MANTARO S.A. | E31: =VLOOKUP(D31,'InfoBase 6B2a'!$D$20:$G$69,2,FALSE) -> 0.07423415951 | F31: =VLOOKUP(D31,'InfoBase 6B2a'!$D$20:$G$69,4,FALSE)/1000 -> 39.875
B32: ='InfoBase 6B2a'!B65 -> 46 | C32: ='InfoBase 6B2a'!C65 -> Junín | D32: ='InfoBase 6B2a'!D65 -> SEDAM HUANCAYO S.A.C. | E32: =VLOOKUP(D32,'InfoBase 6B2a'!$D$20:$G$69,2,FALSE) -> 0 | F32: =VLOOKUP(D32,'InfoBase 6B2a'!$D$20:$G$69,4,FALSE)/1000 -> 225.822
B33: ='InfoBase 6B2a'!B68 -> 50 | C33: ='InfoBase 6B2a'!C68 -> Junín | D33: ='InfoBase 6B2a'!D68 -> EMSAPA YAULI S.RL.L. | E33: =VLOOKUP(D33,'InfoBase 6B2a'!$D$20:$G$69,2,FALSE) -> 0 | F33: =VLOOKUP(D33,'InfoBase 6B2a'!$D$20:$G$69,4,FALSE)/1000 -> 6.1
B34: ='InfoBase 6B2a'!B47 -> 28 | C34: ='InfoBase 6B2a'!C47 -> La Libertad | D34: ='InfoBase 6B2a'!D47 -> SEDALIB S.A. | E34: =VLOOKUP(D34,'InfoBase 6B2a'!$D$20:$G$69,2,FALSE) -> 0.9275540696 | F34: =VLOOKUP(D34,'InfoBase 6B2a'!$D$20:$G$69,4,FALSE)/1000 -> 560
B35: ='InfoBase 6B2a'!B48 -> 29 | C35: ='InfoBase 6B2a'!C48 -> Lambayeque | D35: ='InfoBase 6B2a'!D48 -> EPSEL S.A. | E35: =VLOOKUP(D35,'InfoBase 6B2a'!$D$20:$G$69,2,FALSE) -> 0.8912986279 | F35: =VLOOKUP(D35,'InfoBase 6B2a'!$D$20:$G$69,4,FALSE)/1000 -> 582.065
B36: ='InfoBase 6B2a'!B24 -> 5 | C36: ='InfoBase 6B2a'!C24 -> Lima | D36: ='InfoBase 6B2a'!D24 -> EMAPA Cañete S.A. | E36: =VLOOKUP(D36,'InfoBase 6B2a'!$D$20:$G$69,2,FALSE) -> 0.1752974183 | F36: =VLOOKUP(D36,'InfoBase 6B2a'!$D$20:$G$69,4,FALSE)/1000 -> 81.605
B37: ='InfoBase 6B2a'!B43 -> 24 | C37: ='InfoBase 6B2a'!C43 -> Lima | D37: ='InfoBase 6B2a'!D43 -> EMAPA HUARAL S.A. | E37: =VLOOKUP(D37,'InfoBase 6B2a'!$D$20:$G$69,2,FALSE) -> 0 | F37: =VLOOKUP(D37,'InfoBase 6B2a'!$D$20:$G$69,4,FALSE)/1000 -> 48.156
B38: ='InfoBase 6B2a'!B44 -> 25 | C38: ='InfoBase 6B2a'!C44 -> Lima | D38: ='InfoBase 6B2a'!D44 -> EMAPA HUACHO S.A. | E38: =VLOOKUP(D38,'InfoBase 6B2a'!$D$20:$G$69,2,FALSE) -> 0 | F38: =VLOOKUP(D38,'InfoBase 6B2a'!$D$20:$G$69,4,FALSE)/1000 -> 80.291
B39: ='InfoBase 6B2a'!B45 -> 26 | C39: ='InfoBase 6B2a'!C45 -> Lima | D39: ='InfoBase 6B2a'!D45 -> SEDAPAL S.A. | E39: =VLOOKUP(D39,'InfoBase 6B2a'!$D$20:$G$69,2,FALSE) -> 0.1217434295 | F39: =VLOOKUP(D39,'InfoBase 6B2a'!$D$20:$G$69,4,FALSE)/1000 -> 6308.33107
B40: ='InfoBase 6B2a'!B55 -> 36 | C40: ='InfoBase 6B2a'!C55 -> Lima | D40: ='InfoBase 6B2a'!D55 -> SEMAPA BARRANCA S.A. | E40: =VLOOKUP(D40,'InfoBase 6B2a'!$D$20:$G$69,2,FALSE) -> 0 | F40: =VLOOKUP(D40,'InfoBase 6B2a'!$D$20:$G$69,4,FALSE)/1000 -> 55.977
B41: ='InfoBase 6B2a'!B23 -> 4 | C41: ='InfoBase 6B2a'!C23 -> Loreto | D41: ='InfoBase 6B2a'!D23 -> EPS SEDALORETO S.A. | E41: =VLOOKUP(D41,'InfoBase 6B2a'!$D$20:$G$69,2,FALSE) -> 0 | F41: =VLOOKUP(D41,'InfoBase 6B2a'!$D$20:$G$69,4,FALSE)/1000 -> 220.743
B42: ='InfoBase 6B2a'!B36 -> 17 | C42: ='InfoBase 6B2a'!C36 -> Madre de Dios | D42: ='InfoBase 6B2a'!D36 -> EMAPAT S.R.Ltda. | E42: =VLOOKUP(D42,'InfoBase 6B2a'!$D$20:$G$69,2,FALSE) -> 0 | F42: =VLOOKUP(D42,'InfoBase 6B2a'!$D$20:$G$69,4,FALSE)/1000 -> 18.118
B43: ='InfoBase 6B2a'!B41 -> 22 | C43: ='InfoBase 6B2a'!C41 -> Moquegua | D43: ='InfoBase 6B2a'!D41 -> EPS MOQUEGUA S.A. | E43: =VLOOKUP(D43,'InfoBase 6B2a'!$D$20:$G$69,2,FALSE) -> 0.8196977296 | F43: =VLOOKUP(D43,'InfoBase 6B2a'!$D$20:$G$69,4,FALSE)/1000 -> 38.462
B44: ='InfoBase 6B2a'!B46 -> 27 | C44: ='InfoBase 6B2a'!C46 -> Moquegua | D44: ='InfoBase 6B2a'!D46 -> EPS ILO S.A. | E44: =VLOOKUP(D44,'InfoBase 6B2a'!$D$20:$G$69,2,FALSE) -> 0.8017038568 | F44: =VLOOKUP(D44,'InfoBase 6B2a'!$D$20:$G$69,4,FALSE)/1000 -> 47.026
B45: ='InfoBase 6B2a'!B51 -> 32 | C45: ='InfoBase 6B2a'!C51 -> Piura | D45: ='InfoBase 6B2a'!D51 -> EPS GRAU S.A. | E45: =VLOOKUP(D45,'InfoBase 6B2a'!$D$20:$G$69,2,FALSE) -> 0.4268772175 | F45: =VLOOKUP(D45,'InfoBase 6B2a'!$D$20:$G$69,4,FALSE)/1000 -> 606.43
B46: ='InfoBase 6B2a'!B25 -> 6 | C46: ='InfoBase 6B2a'!C25 -> Puno | D46: ='InfoBase 6B2a'!D25 -> EMSA Puno S.A. | E46: =VLOOKUP(D46,'InfoBase 6B2a'!$D$20:$G$69,2,FALSE) -> 0.9969960142 | F46: =VLOOKUP(D46,'InfoBase 6B2a'!$D$20:$G$69,4,FALSE)/1000 -> 109.166
B47: ='InfoBase 6B2a'!B42 -> 23 | C47: ='InfoBase 6B2a'!C42 -> Puno | D47: ='InfoBase 6B2a'!D42 -> EMAPA Y S.R.L. | E47: =VLOOKUP(D47,'InfoBase 6B2a'!$D$20:$G$69,2,FALSE) -> 0 | F47: =VLOOKUP(D47,'InfoBase 6B2a'!$D$20:$G$69,4,FALSE)/1000 -> 6.487
B48: ='InfoBase 6B2a'!B59 -> 40 | C48: ='InfoBase 6B2a'!C59 -> Puno | D48: ='InfoBase 6B2a'!D59 -> EPS NOR PUNO S.A. | E48: =VLOOKUP(D48,'InfoBase 6B2a'!$D$20:$G$69,2,FALSE) -> 0 | F48: =VLOOKUP(D48,'InfoBase 6B2a'!$D$20:$G$69,4,FALSE)/1000 -> 15.438
B49: ='InfoBase 6B2a'!B60 -> 41 | C49: ='InfoBase 6B2a'!C60 -> Puno | D49: ='InfoBase 6B2a'!D60 -> SEDAJULIACA S.A. | E49: =VLOOKUP(D49,'InfoBase 6B2a'!$D$20:$G$69,2,FALSE) -> 0.6261803714 | F49: =VLOOKUP(D49,'InfoBase 6B2a'!$D$20:$G$69,4,FALSE)/1000 -> 147.955
B50: ='InfoBase 6B2a'!B67 -> 48 | C50: ='InfoBase 6B2a'!C67 -> Puno | D50: ='InfoBase 6B2a'!D67 -> EPS AGUAS DEL ALTIPLANO | E50: =VLOOKUP(D50,'InfoBase 6B2a'!$D$20:$G$69,2,FALSE) -> 0 | F50: =VLOOKUP(D50,'InfoBase 6B2a'!$D$20:$G$69,4,FALSE)/1000 -> 11.14628126
B51: ='InfoBase 6B2a'!B35 -> 16 | C51: ='InfoBase 6B2a'!C35 -> San Martín | D51: ='InfoBase 6B2a'!D35 -> EMAPA San Martín S.A. | E51: =VLOOKUP(D51,'InfoBase 6B2a'!$D$20:$G$69,2,FALSE) -> 0.03789905233 | F51: =VLOOKUP(D51,'InfoBase 6B2a'!$D$20:$G$69,4,FALSE)/1000 -> 133.035
B52: ='InfoBase 6B2a'!B39 -> 20 | C52: ='InfoBase 6B2a'!C39 -> San Martín | D52: ='InfoBase 6B2a'!D39 -> EMAPA MOYOBAMBA S.R.LTDA. | E52: =VLOOKUP(D52,'InfoBase 6B2a'!$D$20:$G$69,2,FALSE) -> 0.3179612773 | F52: =VLOOKUP(D52,'InfoBase 6B2a'!$D$20:$G$69,4,FALSE)/1000 -> 34.636
B53: ='InfoBase 6B2a'!B49 -> 30 | C53: ='InfoBase 6B2a'!C49 -> San Martín | D53: ='InfoBase 6B2a'!D49 -> SEDAPAR S.A. | E53: =VLOOKUP(D53,'InfoBase 6B2a'!$D$20:$G$69,2,FALSE) -> 0.1584858801 | F53: =VLOOKUP(D53,'InfoBase 6B2a'!$D$20:$G$69,4,FALSE)/1000 -> 746.481
B54: ='InfoBase 6B2a'!B31 -> 12 | C54: ='InfoBase 6B2a'!C31 -> Tacna | D54: ='InfoBase 6B2a'!D31 -> EPS TACNA S.A. | E54: =VLOOKUP(D54,'InfoBase 6B2a'!$D$20:$G$69,2,FALSE) -> 0.9521580676 | F54: =VLOOKUP(D54,'InfoBase 6B2a'!$D$20:$G$69,4,FALSE)/1000 -> 215.2396
B55: ='InfoBase 6B2a'!B27 -> 8 | C55: ='InfoBase 6B2a'!C27 -> Tumbes | D55: ='InfoBase 6B2a'!D27 -> Aguas de Tumbes | E55: =VLOOKUP(D55,'InfoBase 6B2a'!$D$20:$G$69,2,FALSE) -> 0.2320200171 | F55: =VLOOKUP(D55,'InfoBase 6B2a'!$D$20:$G$69,4,FALSE)/1000 -> 86.841
B56: ='InfoBase 6B2a'!B22 -> 3 | C56: ='InfoBase 6B2a'!C22 -> Ucayali | D56: ='InfoBase 6B2a'!D22 -> EMAPACOP S.A. | E56: =VLOOKUP(D56,'InfoBase 6B2a'!$D$20:$G$69,2,FALSE) -> 0 | F56: =VLOOKUP(D56,'InfoBase 6B2a'!$D$20:$G$69,4,FALSE)/1000 -> 102.105
F57: =SUM(F7:F56) -> 12130.47937
C92: ='Prop. y Fact. de conversión'!C36*365/'Prop. y Fact. de conversión'!C17*1000 -> 18250 | D92: kg/1000 personas.año
C97: =SUM(C98:C101) -> 808436 | D97: =SUM(D98:D101) -> 259098
C98: 438834 | D98: 93349 | E98: 21.27
C99: 273868 | D99: 146592 | E99: 53.53
C100: 65654 | D100: 10989 | E100: 16.74
C101: 30080 | D101: 8168 | E101: 27.16
B114: Demanda Bioquímica de Oxígeno (DBO)
B116: DBO5
E155: =AVERAGE('InfoBase 6B2a'!E20:E69) -> 0.3340606689 | F155: =AVERAGE('InfoBase 6B2a'!#REF!) -> 
G157: =AVERAGE('InfoBase 6B2a'!#REF!) ->  | H157: =AVERAGE('InfoBase 6B2a'!#REF!) -> 
I181: =AVERAGE('InfoBase 6B2a'!#REF!) -> 

Sheet Prop. y Fact. de conversión
B2: Relación de metano/carbono y oxido nitroso/nitrógeno
B4: Peso atómico del carbono | C4: 12
B5: Peso atómico del hidrógeno | C5: 1
B6: Peso atómico del nitrógeno | C6: 14
B7: Peso atómico del oxígeno | C7: 16
B8: Fuente: Tabla periódica de los elementos
B10: Relación CH4/C | C10: =(C4+C5*4)/C4 -> 1.333333333
B13: Conversión de unidades
B15: Masa
B16: 1 tonelada | C16: 1000 | D16: kg
B17: 1 kilogramo | C17: 1000 | D17: g
B18: 1 tonelada | C18: =C16*C17 -> 1000000 | D18: g
B20: Prefijo | C20: Simbolo | D20: Factor
B21: deca | C21: da | D21: =10^1 -> 10
B22: hecto | C22: h | D22: =10^2 -> 100
B23: kilo | C23: k | D23: =10^3 -> 1000
B24: mega | C24: M | D24: =10^6 -> 1000000
B25: giga | C25: G | D25: =10^9 -> 1000000000
B26: tera | C26: T | D26: =10^12 -> 1000000000000
B27: Fuente: Sistema Internacional - Guide for the Use of the International System of Units (SI) http://physics.nist.gov/cuu/pdf/sp811.pdf
B30: Volumen
B31: 1 centimetro cúbico | C31: =1/1000 -> 0.001 | D31: l
B32: Fuente: http://www.metric-conversions.org/es/volumen/tabla-de-conversion-de-centimetros-cubicos-a-litros.htm
B34: Demanda Bioquímica de Oxígeno (DBO)
B36: DBO5 | C36: 50 | D36: g/hab.día

Sheet FE 6B2
B2: Factor de conversión de metano para el sistema de manejo (FCM)
B4: FCM | C4: 0.8
B5: Fuente: GL 1996, cuadro 6-7, página 6.20
B7: Capacidad máxima de producción de metano (Bo)
B9: Bo | C9: 0.6 | D9: kg CH4/kg DBO
B10: Fuente: OBP 2000, página 5.18
B12: Fracción de nitrógeno en la proteína
B14: FracNPR | C14: 0.16 | D14: Kg N/Kg proteína
B15: Fuente: IPCC 1996, página 6.25
B17: Factor de emisión por excretas humanas
B19: EF6 | C19: 0.01 | D19: kgCH4/kgDBO
B20: Fuente: IPCC 1996, página 6.25

Sheet Emisiones GEI 6B2a
B2: Estimación de metano generado por el tratamiento de aguas residuales domésticas
B4: Sector | C4: Desechos
B5: Categoría | C5: Aguas residuales domésticas
B6: Código de categoría | C6: 6B2a
B8: A | C8: B | D8: C | E8: D | F8: E | G8: F | H8: G | I8: H | J8: I | K8: J | L8: K | M8: L | N8: M | O8: N | P8: O
B9: Región - EPS | C9: Población con alcantarillado (1,000 personas) | D9: Componente orgánico degradable (kg DBO/1000 personas/año) | E9: Fracción del componente orgánico degradable removido como lodo | F9: Total del componente orgánico del agua residual doméstica residual/comercial (kg DBO/año) | G9: Total del componente orgánico del lodo doméstico/comercial (kg DBO/año) | H9: Sistemas de manejo de aguas residuales | I9: Fracción de agua residual tratada por el sistema de manejo | J9: Factor de conversión de metano para el sistema de manejo | K9: Fracción real de metano | L9: Capacidad máxima de producción de metano (kg CH4/kg DBO) | M9: Factor de emisión para aguas residuales domésticas (kg CH4/kg DBO) | N9: Emisiones de metano sin recuperación o quema (Kg CH4) | O9: Metano recuperado o quemado (Kg CH4) | P9: Emisiones netas de metano (Gg CH4)
F10: E = [B x C x (1-D)] | G10: F = (B x C x D) | K10: J = (H x I ) | M10: L = (J x K) | N10: M = (E x L) | P10: K = (M - N)/1 000 000
B11: ='InfoProc 6B2a'!C7& "- " & 'InfoBase 6B2a'!D20 -> Amazonas- EMUSAP Amazonas | C11: ='InfoProc 6B2a'!F7 -> 15.752 | D11: ='InfoProc 6B2a'!$C$92 -> 18250 | E11: 0 | F11: =(C11*D11*(1-E11)) -> 287474 | G11: =C11*D11*E11 -> 0 | I11: ='InfoProc 6B2a'!E7 -> 0 | J11: ='FE 6B2'!C4 -> 0.8 | K11: =I11*J11 -> 0 | L11: ='FE 6B2'!C9 -> 0.6 | M11: =K11*L11 -> 0 | N11: =F11*M11 -> 0 | P11: =(N11-O11)/1000000 -> 0
B12: ='InfoProc 6B2a'!C8& "- " & 'InfoBase 6B2a'!D21 -> Amazonas- SEDA Huánuco S.A. | C12: ='InfoProc 6B2a'!F8 -> 16.356 | D12: ='InfoProc 6B2a'!$C$92 -> 18250 | E12: 0 | F12: =(C12*D12*(1-E12)) -> 298497 | G12: =C12*D12*E12 -> 0 | I12: ='InfoProc 6B2a'!E8 -> 0 | J12: ='FE 6B2'!C4 -> 0.8 | K12: =I12*J12 -> 0 | L12: ='FE 6B2'!C9 -> 0.6 | M12: 0 | N12: 0 | P12: =(N12-O12)/1000000 -> 0
B13: ='InfoProc 6B2a'!C9& "- " & 'InfoBase 6B2a'!D22 -> Amazonas- EMAPACOP S.A. | C13: ='InfoProc 6B2a'!F9 -> 16.689 | D13: ='InfoProc 6B2a'!$C$92 -> 18250 | E13: 0 | F13: 304574.25 | G13: 0 | I13: ='InfoProc 6B2a'!E9 -> 0 | J13: ='FE 6B2'!C4 -> 0.8 | K13: 0 | L13: ='FE 6B2'!C9 -> 0.6 | M13: 0 | N13: 0 | P13: 0
B14: ='InfoProc 6B2a'!C10& "- " & 'InfoBase 6B2a'!D23 -> Áncash- EPS SEDALORETO S.A. | C14: ='InfoProc 6B2a'!F10 -> 290.555 | D14: ='InfoProc 6B2a'!$C$92 -> 18250 | E14: 0 | F14: 5302628.75 | G14: 0 | I14: ='InfoProc 6B2a'!E10 -> 0.595456609 | J14: ='FE 6B2'!C4 -> 0.8 | K14: 0.4763652872 | L14: ='FE 6B2'!C9 -> 0.6 | M14: =K14*L14 -> 0.2858191723 | N14: 1515592.96 | P14: 1.51559296
B15: ='InfoProc 6B2a'!C11& "- " & 'InfoBase 6B2a'!D24 -> Áncash- EMAPA Cañete S.A. | C15: ='InfoProc 6B2a'!F11 -> 74.04 | D15: ='InfoProc 6B2a'!$C$92 -> 18250 | E15: 0 | F15: 1351230 | G15: 0 | I15: ='InfoProc 6B2a'!E11 -> 0 | J15: ='FE 6B2'!C4 -> 0.8 | K15: 0 | L15: ='FE 6B2'!C9 -> 0.6 | M15: 0 | N15: 0 | P15: 0
B16: ='InfoProc 6B2a'!C12& "- " & 'InfoBase 6B2a'!D25 -> Apurímac- EMSA Puno S.A. | C16: ='InfoProc 6B2a'!F12 -> 37.88541768 | D16: ='InfoProc 6B2a'!$C$92 -> 18250 | E16: 0 | F16: 691408.8728 | G16: 0 | I16: ='InfoProc 6B2a'!E12 -> 0 | J16: ='FE 6B2'!C4 -> 0.8 | K16: 0 | L16: ='FE 6B2'!C9 -> 0.6 | M16: 0 | N16: 0 | P16: 0
B17: ='InfoProc 6B2a'!C13& "- " & 'InfoBase 6B2a'!D26 -> Apurímac- EPSSMU S.R.Ltda. | C17: ='InfoProc 6B2a'!F13 -> 12.935 | D17: ='InfoProc 6B2a'!$C$92 -> 18250 | E17: 0 | F17: 236063.75 | G17: 0 | I17: ='InfoProc 6B2a'!E13 -> 0 | J17: ='FE 6B2'!C4 -> 0.8 | K17: 0 | L17: ='FE 6B2'!C9 -> 0.6 | M17: 0 | N17: 0 | P17: 0
B18: ='InfoProc 6B2a'!C14& "- " & 'InfoBase 6B2a'!D27 -> Arequipa- Aguas de Tumbes | C18: ='InfoProc 6B2a'!F14 -> 0 | D18: ='InfoProc 6B2a'!$C$92 -> 18250 | E18: 0 | F18: 0 | G18: 0 | I18: ='InfoProc 6B2a'!E14 -> 0 | J18: ='FE 6B2'!C4 -> 0.8 | K18: 0 | L18: ='FE 6B2'!C9 -> 0.6 | M18: 0 | N18: 0 | P18: 0
B19: ='InfoProc 6B2a'!C15& "- " & 'InfoBase 6B2a'!D28 -> Ayacucho- EMAPA Pasco S.A. | C19: ='InfoProc 6B2a'!F15 -> 121.237 | D19: ='InfoProc 6B2a'!$C$92 -> 18250 | E19: 0 | F19: 2212575.25 | G19: 0 | I19: ='InfoProc 6B2a'!E15 -> 0.9744097801 | J19: ='FE 6B2'!C4 -> 0.8 | K19: 0.7795278241 | L19: ='FE 6B2'!C9 -> 0.6 | M19: 0.4677166945 | N19: 1034858.382 | P19: 1.034858382
B20: ='InfoProc 6B2a'!C16& "- " & 'InfoBase 6B2a'!D29 -> Cajamarca- EMAPISCO S.A. | C20: ='InfoProc 6B2a'!F16 -> 118.57 | D20: ='InfoProc 6B2a'!$C$92 -> 18250 | E20: 0 | F20: 2163902.5 | G20: 0 | I20: ='InfoProc 6B2a'!E16 -> 0.05723075528 | J20: ='FE 6B2'!C4 -> 0.8 | K20: 0.04578460422 | L20: ='FE 6B2'!C9 -> 0.6 | M20: 0.02747076253 | N20: 59444.05172 | P20: 0.05944405172
B21: ='InfoProc 6B2a'!C17& "- " & 'InfoBase 6B2a'!D30 -> Cajamarca- SEDACAJ S.A. | C21: ='InfoProc 6B2a'!F17 -> 24.632 | D21: ='InfoProc 6B2a'!$C$92 -> 18250 | E21: 0 | F21: 449534 | G21: 0 | I21: ='InfoProc 6B2a'!E17 -> 0.9764633046 | J21: ='FE 6B2'!C4 -> 0.8 | K21: 0.7811706437 | L21: ='FE 6B2'!C9 -> 0.6 | M21: 0.4687023862 | N21: 210697.6585 | P21: 0.2106976585
B22: ='InfoProc 6B2a'!C18& "- " & 'InfoBase 6B2a'!D31 -> Cerro de Pasco- EPS TACNA S.A. | C22: ='InfoProc 6B2a'!F18 -> 0 | D22: ='InfoProc 6B2a'!$C$92 -> 18250 | E22: 0 | F22: 0 | G22: 0 | I22: ='InfoProc 6B2a'!E18 -> 0 | J22: ='FE 6B2'!C4 -> 0.8 | K22: 0 | L22: ='FE 6B2'!C9 -> 0.6 | M22: 0 | N22: 0 | P22: 0
B23: ='InfoProc 6B2a'!C19& "- " & 'InfoBase 6B2a'!D32 -> Cusco- EMAPAVIGS S.A.C. | C23: ='InfoProc 6B2a'!F19 -> 279.729 | D23: ='InfoProc 6B2a'!$C$92 -> 18250 | E23: 0 | F23: 5105054.25 | G23: 0 | I23: ='InfoProc 6B2a'!E19 -> 0.8506713374 | J23: ='FE 6B2'!C4 -> 0.8 | K23: 0.6805370699 | L23: ='FE 6B2'!C9 -> 0.6 | M23: 0.408322242 | N23: 2084507.197 | P23: 2.084507197
B24: ='InfoProc 6B2a'!C20& "- " & 'InfoBase 6B2a'!D33 -> Cusco- SEDACHIMBOTE S.A. | C24: ='InfoProc 6B2a'!F20 -> 13.129 | D24: ='InfoProc 6B2a'!$C$92 -> 18250 | E24: 0 | F24: 239604.25 | G24: 0 | I24: ='InfoProc 6B2a'!E20 -> 0 | J24: ='FE 6B2'!C4 -> 0.8 | K24: 0 | L24: ='FE 6B2'!C9 -> 0.6 | M24: 0 | N24: 0 | P24: 0
B25: ='InfoProc 6B2a'!C21& "- " & 'InfoBase 6B2a'!D34 -> Cusco- EPSASA | C25: ='InfoProc 6B2a'!F21 -> 36.634 | D25: ='InfoProc 6B2a'!$C$92 -> 18250 | E25: 0 | F25: 668570.5 | G25: 0 | I25: ='InfoProc 6B2a'!E21 -> 0 | J25: ='FE 6B2'!C4 -> 0.8 | K25: 0 | L25: ='FE 6B2'!C9 -> 0.6 | M25: 0 | N25: 0 | P25: 0
B26: ='InfoProc 6B2a'!C22& "- " & 'InfoBase 6B2a'!D35 -> Cusco- EMAPA San Martín S.A. | C26: ='InfoProc 6B2a'!F22 -> 9.289 | D26: ='InfoProc 6B2a'!$C$92 -> 18250 | E26: 0 | F26: 169524.25 | G26: 0 | I26: ='InfoProc 6B2a'!E22 -> 0 | J26: ='FE 6B2'!C4 -> 0.8 | K26: 0 | L26: ='FE 6B2'!C9 -> 0.6 | M26: 0 | N26: 0 | P26: 0
B27: ='InfoProc 6B2a'!C23& "- " & 'InfoBase 6B2a'!D36 -> Huancavelica- EMAPAT S.R.Ltda. | C27: ='InfoProc 6B2a'!F23 -> 20.722 | D27: ='InfoProc 6B2a'!$C$92 -> 18250 | E27: 0 | F27: 378176.5 | G27: 0 | I27: ='InfoProc 6B2a'!E23 -> 0 | J27: ='FE 6B2'!C4 -> 0.8 | K27: 0 | L27: ='FE 6B2'!C9 -> 0.6 | M27: 0 | N27: 0 | P27: 0
B28: ='InfoProc 6B2a'!C24& "- " & 'InfoBase 6B2a'!D37 -> Huánuco- SEMAPACH S.A. | C28: ='InfoProc 6B2a'!F24 -> 130.787 | D28: ='InfoProc 6B2a'!$C$92 -> 18250 | E28: 0 | F28: 2386862.75 | G28: 0 | I28: ='InfoProc 6B2a'!E24 -> 0 | J28: ='FE 6B2'!C4 -> 0.8 | K28: 0 | L28: ='FE 6B2'!C9 -> 0.6 | M28: 0 | N28: 0 | P28: 0
B29: ='InfoProc 6B2a'!C25& "- " & 'InfoBase 6B2a'!D38 -> Ica- EPS Selva Central S.A. | C29: ='InfoProc 6B2a'!F25 -> 60.205 | D29: ='InfoProc 6B2a'!$C$92 -> 18250 | E29: 0 | F29: 1098741.25 | G29: 0 | I29: ='InfoProc 6B2a'!E25 -> 0.927296186 | J29: ='FE 6B2'!C4 -> 0.8 | K29: 0.7418369488 | L29: ='FE 6B2'!C9 -> 0.6 | M29: 0.4451021693 | N29: 489052.1138 | P29: 0.4890521138
B30: ='InfoProc 6B2a'!C26& "- " & 'InfoBase 6B2a'!D39 -> Ica- EMAPA MOYOBAMBA S.R.LTDA. | C30: ='InfoProc 6B2a'!F26 -> 25.93 | D30: ='InfoProc 6B2a'!$C$92 -> 18250 | E30: 0 | F30: 473222.5 | G30: 0 | I30: ='InfoProc 6B2a'!E26 -> 0.8587794067 | J30: ='FE 6B2'!C4 -> 0.8 | K30: 0.6870235254 | L30: ='FE 6B2'!C9 -> 0.6 | M30: 0.4122141152 | N30: 195068.9941 | P30: 0.1950689941
B31: ='InfoProc 6B2a'!C27& "- " & 'InfoBase 6B2a'!D40 -> Ica- EMAPA HUANCAVELICA S.A.C | C31: ='InfoProc 6B2a'!F27 -> 95.562 | D31: ='InfoProc 6B2a'!$C$92 -> 18250 | E31: 0 | F31: 1744006.5 | G31: 0 | I31: ='InfoProc 6B2a'!E27 -> 1 | J31: ='FE 6B2'!C4 -> 0.8 | K31: 0.8 | L31: ='FE 6B2'!C9 -> 0.6 | M31: 0.48 | N31: 837123.12 | P31: 0.83712312
B32: ='InfoProc 6B2a'!C28& "- " & 'InfoBase 6B2a'!D41 -> Ica- EPS MOQUEGUA S.A. | C32: ='InfoProc 6B2a'!F28 -> 126.914 | D32: ='InfoProc 6B2a'!$C$92 -> 18250 | E32: 0 | F32: 2316180.5 | G32: 0 | I32: ='InfoProc 6B2a'!E28 -> 0.9822354686 | J32: ='FE 6B2'!C4 -> 0.8 | K32: 0.7857883748 | L32: ='FE 6B2'!C9 -> 0.6 | M32: 0.4714730249 | N32: 1092016.627 | P32: 1.092016627
B33: ='InfoProc 6B2a'!C29& "- " & 'InfoBase 6B2a'!D42 -> Junín- EMAPA Y S.R.L. | C33: ='InfoProc 6B2a'!F29 -> 47.901 | D33: ='InfoProc 6B2a'!$C$92 -> 18250 | E33: 0 | F33: 874193.25 | G33: 0 | I33: ='InfoProc 6B2a'!E29 -> 0.2500800645 | J33: ='FE 6B2'!C4 -> 0.8 | K33: 0.2000640516 | L33: ='FE 6B2'!C9 -> 0.6 | M33: 0.120038431 | N33: 104936.7861 | P33: 0.1049367861
B34: ='InfoProc 6B2a'!C30& "- " & 'InfoBase 6B2a'!D43 -> Junín- EMAPA HUARAL S.A. | C34: ='InfoProc 6B2a'!F30 -> 27.495 | D34: ='InfoProc 6B2a'!$C$92 -> 18250 | E34: 0 | F34: 501783.75 | G34: 0 | I34: ='InfoProc 6B2a'!E30 -> 0 | J34: ='FE 6B2'!C4 -> 0.8 | K34: 0 | L34: ='FE 6B2'!C9 -> 0.6 | M34: 0 | N34: 0 | P34: 0
B35: ='InfoProc 6B2a'!C31& "- " & 'InfoBase 6B2a'!D44 -> Junín- EMAPA HUACHO S.A. | C35: ='InfoProc 6B2a'!F31 -> 39.875 | D35: ='InfoProc 6B2a'!$C$92 -> 18250 | E35: 0 | F35: 727718.75 | G35: 0 | I35: ='InfoProc 6B2a'!E31 -> 0.07423415951 | J35: ='FE 6B2'!C4 -> 0.8 | K35: 0.05938732761 | L35: ='FE 6B2'!C9 -> 0.6 | M35: 0.03563239657 | N35: 25930.36309 | P35: 0.02593036309
B36: ='InfoProc 6B2a'!C32& "- " & 'InfoBase 6B2a'!D45 -> Junín- SEDAPAL S.A. | C36: ='InfoProc 6B2a'!F32 -> 225.822 | D36: ='InfoProc 6B2a'!$C$92 -> 18250 | E36: 0 | F36: 4121251.5 | G36: 0 | I36: ='InfoProc 6B2a'!E32 -> 0 | J36: ='FE 6B2'!C4 -> 0.8 | K36: 0 | L36: ='FE 6B2'!C9 -> 0.6 | M36: 0 | N36: 0 | P36: 0
B37: ='InfoProc 6B2a'!C33& "- " & 'InfoBase 6B2a'!D46 -> Junín- EPS ILO S.A. | C37: ='InfoProc 6B2a'!F33 -> 6.1 | D37: ='InfoProc 6B2a'!$C$92 -> 18250 | E37: 0 | F37: 111325 | G37: 0 | I37: ='InfoProc 6B2a'!E33 -> 0 | J37: ='FE 6B2'!C4 -> 0.8 | K37: 0 | L37: ='FE 6B2'!C9 -> 0.6 | M37: 0 | N37: 0 | P37: 0
B38: ='InfoProc 6B2a'!C34& "- " & 'InfoBase 6B2a'!D47 -> La Libertad- SEDALIB S.A. | C38: ='InfoProc 6B2a'!F34 -> 560 | D38: ='InfoProc 6B2a'!$C$92 -> 18250 | E38: 0 | F38: 10220000 | G38: 0 | I38: ='InfoProc 6B2a'!E34 -> 0.9275540696 | J38: ='FE 6B2'!C4 -> 0.8 | K38: 0.7420432556 | L38: ='FE 6B2'!C9 -> 0.6 | M38: 0.4452259534 | N38: 4550209.244 | P38: 4.550209244
B39: ='InfoProc 6B2a'!C35& "- " & 'InfoBase 6B2a'!D48 -> Lambayeque- EPSEL S.A. | C39: ='InfoProc 6B2a'!F35 -> 582.065 | D39: ='InfoProc 6B2a'!$C$92 -> 18250 | E39: 0 | F39: 10622686.25 | G39: 0 | I39: ='InfoProc 6B2a'!E35 -> 0.8912986279 | J39: ='FE 6B2'!C4 -> 0.8 | K39: 0.7130389023 | L39: ='FE 6B2'!C9 -> 0.6 | M39: 0.4278233414 | N39: 4544633.126 | P39: 4.544633126
B40: ='InfoProc 6B2a'!C36& "- " & 'InfoBase 6B2a'!D49 -> Lima- SEDAPAR S.A. | C40: ='InfoProc 6B2a'!F36 -> 81.605 | D40: ='InfoProc 6B2a'!$C$92 -> 18250 | E40: 0 | F40: 1489291.25 | G40: 0 | I40: ='InfoProc 6B2a'!E36 -> 0.1752974183 | J40: ='FE 6B2'!C4 -> 0.8 | K40: 0.1402379346 | L40: ='FE 6B2'!C9 -> 0.6 | M40: 0.08414276078 | N40: 125313.0774 | P40: 0.1253130774
B41: ='InfoProc 6B2a'!C37& "- " & 'InfoBase 6B2a'!D50 -> Lima- SEDACUSCO S.A. | C41: ='InfoProc 6B2a'!F37 -> 48.156 | D41: ='InfoProc 6B2a'!$C$92 -> 18250 | E41: 0 | F41: 878847 | G41: 0 | I41: ='InfoProc 6B2a'!E37 -> 0 | J41: ='FE 6B2'!C4 -> 0.8 | K41: 0 | L41: ='FE 6B2'!C9 -> 0.6 | M41: 0 | N41: 0 | P41: 0
B42: ='InfoProc 6B2a'!C38& "- " & 'InfoBase 6B2a'!D51 -> Lima- EPS GRAU S.A. | C42: ='InfoProc 6B2a'!F38 -> 80.291 | D42: ='InfoProc 6B2a'!$C$92 -> 18250 | E42: 0 | F42: 1465310.75 | G42: 0 | I42: ='InfoProc 6B2a'!E38 -> 0 | J42: ='FE 6B2'!C4 -> 0.8 | K42: 0 | L42: ='FE 6B2'!C9 -> 0.6 | M42: 0 | N42: 0 | P42: 0
B43: ='InfoProc 6B2a'!C39& "- " & 'InfoBase 6B2a'!D52 -> Lima- EPS CHAVIN S.A. | C43: ='InfoProc 6B2a'!F39 -> 6308.33107 | D43: ='InfoProc 6B2a'!$C$92 -> 18250 | E43: 0 | F43: 115127042 | G43: 0 | I43: ='InfoProc 6B2a'!E39 -> 0.1217434295 | J43: ='FE 6B2'!C4 -> 0.8 | K43: 0.09739474358 | L43: ='FE 6B2'!C9 -> 0.6 | M43: 0.05843684615 | N43: 6727661.243 | P43: 6.727661243
B44: ='InfoProc 6B2a'!C40& "- " & 'InfoBase 6B2a'!D53 -> Lima- EMAQ S.R.LTDA. | C44: ='InfoProc 6B2a'!F40 -> 55.977 | D44: ='InfoProc 6B2a'!$C$92 -> 18250 | E44: 0 | F44: 1021580.25 | G44: 0 | I44: ='InfoProc 6B2a'!E40 -> 0 | J44: ='FE 6B2'!C4 -> 0.8 | K44: 0 | L44: ='FE 6B2'!C9 -> 0.6 | M44: 0 | N44: 0 | P44: 0
B45: ='InfoProc 6B2a'!C41& "- " & 'InfoBase 6B2a'!D54 -> Loreto- EMAPAB S.R.LTDA. | C45: ='InfoProc 6B2a'!F41 -> 220.743 | D45: ='InfoProc 6B2a'!$C$92 -> 18250 | E45: 0 | F45: 4028559.75 | G45: 0 | I45: ='InfoProc 6B2a'!E41 -> 0 | J45: ='FE 6B2'!C4 -> 0.8 | K45: 0 | L45: ='FE 6B2'!C9 -> 0.6 | M45: 0 | N45: 0 | P45: 0
B46: ='InfoProc 6B2a'!C42& "- " & 'InfoBase 6B2a'!D55 -> Madre de Dios- SEMAPA BARRANCA S.A. | C46: ='InfoProc 6B2a'!F42 -> 18.118 | D46: ='InfoProc 6B2a'!$C$92 -> 18250 | E46: 0 | F46: 330653.5 | G46: 0 | I46: ='InfoProc 6B2a'!E42 -> 0 | J46: ='FE 6B2'!C4 -> 0.8 | K46: 0 | L46: ='FE 6B2'!C9 -> 0.6 | M46: 0 | N46: 0 | P46: 0
B47: ='InfoProc 6B2a'!C43& "- " & 'InfoBase 6B2a'!D56 -> Moquegua- EMAPICA S.A. | C47: ='InfoProc 6B2a'!F43 -> 38.462 | D47: ='InfoProc 6B2a'!$C$92 -> 18250 | E47: 0 | F47: 701931.5 | G47: 0 | I47: ='InfoProc 6B2a'!E43 -> 0.8196977296 | J47: ='FE 6B2'!C4 -> 0.8 | K47: 0.6557581837 | L47: ='FE 6B2'!C9 -> 0.6 | M47: 0.3934549102 | N47: 276178.3953 | P47: 0.2761783953
B48: ='InfoProc 6B2a'!C44& "- " & 'InfoBase 6B2a'!D57 -> Moquegua- EMPSSAPAL S.A. | C48: ='InfoProc 6B2a'!F44 -> 47.026 | D48: ='InfoProc 6B2a'!$C$92 -> 18250 | E48: 0 | F48: 858224.5 | G48: 0 | I48: ='InfoProc 6B2a'!E44 -> 0.8017038568 | J48: ='FE 6B2'!C4 -> 0.8 | K48: 0.6413630854 | L48: ='FE 6B2'!C9 -> 0.6 | M48: 0.3848178513 | N48: 330260.108 | P48: 0.330260108
B49: ='InfoProc 6B2a'!C45& "- " & 'InfoBase 6B2a'!D58 -> Piura- EPS SIERRA CENTRAL S.R.L. | C49: ='InfoProc 6B2a'!F45 -> 606.43 | D49: ='InfoProc 6B2a'!$C$92 -> 18250 | E49: 0 | F49: 11067347.5 | G49: 0 | I49: ='InfoProc 6B2a'!E45 -> 0.4268772175 | J49: ='FE 6B2'!C4 -> 0.8 | K49: 0.341501774 | L49: ='FE 6B2'!C9 -> 0.6 | M49: 0.2049010644 | N49: 2267711.283 | P49: 2.267711283
B50: ='InfoProc 6B2a'!C46& "- " & 'InfoBase 6B2a'!D59 -> Puno- EPS NOR PUNO S.A. | C50: ='InfoProc 6B2a'!F46 -> 109.166 | D50: ='InfoProc 6B2a'!$C$92 -> 18250 | E50: 0 | F50: 1992279.5 | G50: 0 | I50: ='InfoProc 6B2a'!E46 -> 0.9969960142 | J50: ='FE 6B2'!C4 -> 0.8 | K50: 0.7975968114 | L50: ='FE 6B2'!C9 -> 0.6 | M50: 0.4785580868 | N50: 953421.466 | P50: 0.953421466
B51: ='InfoProc 6B2a'!C47& "- " & 'InfoBase 6B2a'!D60 -> Puno- SEDAJULIACA S.A. | C51: ='InfoProc 6B2a'!F47 -> 6.487 | D51: ='InfoProc 6B2a'!$C$92 -> 18250 | E51: 0 | F51: 118387.75 | G51: 0 | I51: ='InfoProc 6B2a'!E47 -> 0 | J51: ='FE 6B2'!C4 -> 0.8 | K51: 0 | L51: ='FE 6B2'!C9 -> 0.6 | M51: 0 | N51: 0 | P51: 0
B52: ='InfoProc 6B2a'!C48& "- " & 'InfoBase 6B2a'!D61 -> Puno- EPS MANTARO S.A. | C52: ='InfoProc 6B2a'!F48 -> 15.438 | D52: ='InfoProc 6B2a'!$C$92 -> 18250 | E52: 0 | F52: 281743.5 | G52: 0 | I52: ='InfoProc 6B2a'!E48 -> 0 | J52: ='FE 6B2'!C4 -> 0.8 | K52: 0 | L52: ='FE 6B2'!C9 -> 0.6 | M52: 0 | N52: 0 | P52: 0
B53: ='InfoProc 6B2a'!C49& "- " & 'InfoBase 6B2a'!D62 -> Puno- EMUSAP ABANCAY S.A. | C53: ='InfoProc 6B2a'!F49 -> 147.955 | D53: ='InfoProc 6B2a'!$C$92 -> 18250 | E53: 0 | F53: 2700178.75 | G53: 0 | I53: ='InfoProc 6B2a'!E49 -> 0.6261803714 | J53: ='FE 6B2'!C4 -> 0.8 | K53: 0.5009442971 | L53: ='FE 6B2'!C9 -> 0.6 | M53: 0.3005665783 | N53: 811583.4876 | P53: 0.8115834876
B54: ='InfoProc 6B2a'!C50& "- " & 'InfoBase 6B2a'!D63 -> Puno- EMSAP CHANKA S.R.L. | C54: ='InfoProc 6B2a'!F50 -> 11.14628126 | D54: ='InfoProc 6B2a'!$C$92 -> 18250 | E54: 0 | F54: 203419.6329 | G54: 0 | I54: ='InfoProc 6B2a'!E50 -> 0 | J54: ='FE 6B2'!C4 -> 0.8 | K54: 0 | L54: ='FE 6B2'!C9 -> 0.6 | M54: 0 | N54: 0 | P54: 0
B55: ='InfoProc 6B2a'!C51& "- " & 'InfoBase 6B2a'!D64 -> San Martín- EPS MARAÑON S.R.L. | C55: ='InfoProc 6B2a'!F51 -> 133.035 | D55: ='InfoProc 6B2a'!$C$92 -> 18250 | E55: 0 | F55: 2427888.75 | G55: 0 | I55: ='InfoProc 6B2a'!E51 -> 0.03789905233 | J55: ='FE 6B2'!C4 -> 0.8 | K55: 0.03031924187 | L55: ='FE 6B2'!C9 -> 0.6 | M55: 0.01819154512 | N55: 44167.04774 | P55: 0.04416704774
B56: ='InfoProc 6B2a'!C52& "- " & 'InfoBase 6B2a'!D65 -> San Martín- SEDAM HUANCAYO S.A.C. | C56: ='InfoProc 6B2a'!F52 -> 34.636 | D56: ='InfoProc 6B2a'!$C$92 -> 18250 | E56: 0 | F56: 632107 | G56: 0 | I56: ='InfoProc 6B2a'!E52 -> 0.3179612773 | J56: ='FE 6B2'!C4 -> 0.8 | K56: 0.2543690218 | L56: ='FE 6B2'!C9 -> 0.6 | M56: 0.1526214131 | N56: 96473.06357 | P56: 0.09647306357
B57: ='InfoProc 6B2a'!C53& "- " & 'InfoBase 6B2a'!D66 -> San Martín- EMSAPA CALCA S.R.L. | C57: ='InfoProc 6B2a'!F53 -> 746.481 | D57: ='InfoProc 6B2a'!$C$92 -> 18250 | E57: 0 | F57: 13623278.25 | G57: 0 | I57: ='InfoProc 6B2a'!E53 -> 0.1584858801 | J57: ='FE 6B2'!C4 -> 0.8 | K57: 0.1267887041 | L57: ='FE 6B2'!C9 -> 0.6 | M57: 0.07607322245 | N57: 1036366.677 | P57: 1.036366677
B58: ='InfoProc 6B2a'!C54& "- " & 'InfoBase 6B2a'!D67 -> Tacna- EPS AGUAS DEL ALTIPLANO | C58: ='InfoProc 6B2a'!F54 -> 215.2396 | D58: ='InfoProc 6B2a'!$C$92 -> 18250 | E58: 0 | F58: 3928122.7 | G58: 0 | I58: ='InfoProc 6B2a'!E54 -> 0.9521580676 | J58: ='FE 6B2'!C4 -> 0.8 | K58: 0.7617264541 | L58: ='FE 6B2'!C9 -> 0.6 | M58: 0.4570358724 | N58: 1795292.985 | P58: 1.795292985
B59: ='InfoProc 6B2a'!C55& "- " & 'InfoBase 6B2a'!D68 -> Tumbes- EMSAPA YAULI S.RL.L. | C59: ='InfoProc 6B2a'!F55 -> 86.841 | D59: ='InfoProc 6B2a'!$C$92 -> 18250 | E59: 0 | F59: 1584848.25 | G59: 0 | I59: ='InfoProc 6B2a'!E55 -> 0.2320200171 | J59: ='FE 6B2'!C4 -> 0.8 | K59: 0.1856160137 | L59: ='FE 6B2'!C9 -> 0.6 | M59: 0.1113696082 | N59: 176503.9287 | P59: 0.1765039287
B60: ='InfoProc 6B2a'!C56& "- " & 'InfoBase 6B2a'!D69 -> Ucayali- SEDAPAR S.R.L. (Rioja) | C60: ='InfoProc 6B2a'!F56 -> 102.105 | D60: ='InfoProc 6B2a'!$C$92 -> 18250 | E60: 0 | F60: 1863416.25 | G60: 0 | I60: ='InfoProc 6B2a'!E56 -> 0 | J60: ='FE 6B2'!C4 -> 0.8 | K60: 0 | L60: ='FE 6B2'!C9 -> 0.6 | M60: =K60*L60 -> 0 | N60: 0 | P60: 0
O61: Total: | P61: =SUM(P11:P60) -> 31.38500338

Sheet Emisiones GEI 6B2b
B2: Estimación de óxido nitroso generado por excretas humanas
B4: Sector | C4: Desechos
B5: Categoría | C5: Aguas residuales domésticas
B6: Código de categoría | C6: 6B2b
C8: A | D8: B | E8: C | F8: D | G8: E | H8: F | I8: G | J8: H
C9: Consumo per-cápita de proteínas (Kg proteína/persona/año) | D9: Población (número) | E9: Fracción de Nitrógeno en la proteína (Kg N/Kg proteína) | F9: Cantidad de N en las excretas producidas (Kg N/año) | G9: Cantidad de N en la orina (Kg N/año) | H9: Cantidad neta de N en la orina producida (Kg N/año) | I9: Factor de Emisión (Kg N2O-N/Kg N en el excremento producido) | J9: Total Anual de Emisiones de N2O (Gg N2O/año)
F11: D = A x B x C | H11: F = D - E | J11: H = (F x G) x (44/28) / 1 000 000
B12: Total | C12: ='InfoBase 6B2b'!D17/'Prop. y Fact. de conversión'!C17*365 -> 24.455 | D12: ='InfoBase 6B2b (población)'!E18 -> 27810540 | E12: ='FE 6B2'!C14 -> 0.16 | F12: =C12*D12*E12 -> 108817080.9 | G12: 0 | H12: =F12-G12 -> 108817080.9 | I12: ='FE 6B2'!C19 -> 0.01 | J12: =(H12*I12)*(44/28)/1000000 -> 1.7099827

Sheet Resultados INGEI
B2: Inventario Nacional de Gases de Efecto Invernadero del sector Desechos - Tratamiento y Eliminación de Aguas Residuales Domesticas 2005
B4: Código de categorías de fuentes 1996* | F4: Categorías de fuentes y sumideros | G4: Dióxido de carbono [GgCO2] | H4: Metano [MgCH4] | I4: Óxido nitroso [MgN2O] | J4: Emisiones de GEI [GgCO2e]
B5: 6 | F5: Desechos | G5: =G6+G8 -> 0 | H5: =H6+H8 -> 31385.00338 | I5: 1709.9827 | J5: =J6+J8 -> 1189.1797
C6: 6A | F6: Disposición de residuos sólidos | G6: =SUM(G7) -> 0
D7: 6A1 | F7: Residuos sólidos
C8: 6B | F8: Tratamiento de aguas residuales | G8: =SUM(G9:G10) -> 0 | H8: =SUM(H9:H10) -> 31385.00338 | I8: =SUM(I9:I10) -> 1709.9827 | J8: =SUM(J9:J10) -> 1189.1797
D9: 6B1 | F9: Efluentes industriales
D10: 6B2 | F10: Tratamiento y eliminación de aguas residuales domésticas | G10: =SUM(G11:G12) -> 0 | H10: =SUM(H11:H12) -> 31385.00338 | I10: 1709.9827 | J10: 1189.1797
E11: 6B2a | F11: Aguas residuales domésticas | G11: 0 | H11: ='Emisiones GEI 6B2a'!P61*1000 -> 31385.00338 | I11: 0 | J11: =ROUND(G11+H11*21/1000+I11*310/1000,4) -> 659.0851
E12: 6B2b | F12: Excretas humanas | G12: 0 | H12: 0 | I12: ='Emisiones GEI 6B2b'!J12*1000 -> 1709.9827 | J12: 530.0946
B13: * Han sido creadas para el INGEI 6A1, 6B2a y 6B2b (ver hoja de caracterización)
